Cogmind - Beta 14 @@@ ROGUE MODE // 2024.09.26 @ 00:15:35 Player: KURIIRI Result: Self-destructed Performance ------------- Evolutions (1) 500 Regions Visited (5) 1000 Robots Destroyed (56) 280 Value Destroyed (1233) 1233 Prototype IDs (30) 600 Alien Tech Used (0) 0 Bonus (300) 300 TOTAL SCORE: 3913 Bonus ------- Aligned with FarCom 300 Cogmind --------- Core Integrity 316/400 Matter 300/300 Energy 265/265 System Corruption 0% Temperature Cool (0) Movement Treading (160) Location -9/Exiles Parts ------- > --- POWER (1) -------- Improved Ion Engine > --- PROPULSION (3) --- Light Treads Light Treads Improved Treads > --- UTILITY (3) ------ Large Storage Unit Improved Weapon Shielding Medium Armor Plating > --- WEAPON (2) ------- Improved Medium Laser Improved Medium Laser > --- INVENTORY (15) --- Ion Engine Fission Core Light Fission Core Light Treads Heat Sink Small Storage Unit Hacking Suite Ion Cannon Assault Rifle Assault Rifle Grenade Launcher Grenade Launcher Grenade Launcher Datajack Hammer Peak State ------------ > --- POWER ------------ Improved Ion Engine > --- PROPULSION ------- Light Treads Improved Treads Improved Flight Unit > --- UTILITY ---------- Large Storage Unit Improved Weapon Shielding Medium Armor Plating > --- WEAPON ----------- Improved Medium Laser Improved Medium Laser > --- INVENTORY -------- Ion Engine Light Ion Engine Aluminum Leg Aluminum Leg Aluminum Leg Small Storage Unit Improved Medium Laser Ion Cannon Assault Rifle Assault Rifle Grenade Launcher Grenade Launcher Grenade Launcher Datajack Hammer [Rating: 21] Favorites ----------- Power Improved Ion Engine Engine Improved Ion Engine Propulsion Aluminum Leg Treads Light Treads Leg Aluminum Leg Flight Unit Improved Flight Unit Utility Large Storage Unit Device Cooling System Storage Large Storage Unit Protection Improved Weapon Shielding Weapon Improved Medium Laser Energy Gun Improved Medium Laser Energy Cannon Ion Cannon Ballistic Gun Light Assault Rifle Impact Weapon Hammer Special Melee Weapon Datajack Build | -11 -10 -10 -9 -9 -9 ------- Run | Yrd Mat Min Mat Min Exi Slots Evolved 2 | . . . 2 . . Power . | . . . . . . Propulsion 1 | . . . 1 . . Utility 1 | . . . 1 . . Weapon . | . . . . . . Parts Attached 52 | 7 9 1 35 . . Power 8 | 1 1 . 6 . . Engine 8 | 1 1 . 6 . . Core . | . . . . . . Reactor . | . . . . . . Propulsion 17 | 2 3 . 12 . . Treads 8 | . . . 8 . . Leg 8 | 2 3 . 3 . . Wheel . | . . . . . . Hover . | . . . . . . Flight 1 | . . . 1 . . Utility 9 | 1 2 . 6 . . Device 1 | . . . 1 . . Storage 3 | 1 1 . 1 . . Processor . | . . . . . . Hackware . | . . . . . . Protection 5 | . 1 . 4 . . Artifact . | . . . . . . Weapon 18 | 3 3 1 11 . . Energy Gun 10 | 2 1 . 7 . . Energy Cannon 2 | . . . 2 . . Ballistic Gun 4 | 1 1 . 2 . . Ballistic Cannon . | . . . . . . Launcher . | . . . . . . Special Weapon . | . . . . . . Impact Weapon 1 | . 1 . . . . Slashing Weapon . | . . . . . . Piercing Weapon . | . . . . . . Special Melee Weapon 1 | . . 1 . . . Unidentified Prototypes 5 | . . . 5 . . Corrupted Parts 1 | . . 1 . . . System Corruption 1 | . . 1 . . . Parts Lost 2 | . 2 . . . . Power . | . . . . . . Propulsion 1 | . 1 . . . . Utility . | . . . . . . Weapon 1 | . 1 . . . . Highest Loss Streak 2 | . 2 . . . . To Critical Strikes . | . . . . . . Average Slot Usage (%) 97 | . 98 100 94 100 100 Engine 11 | . 14 14 9 11 11 Treads 16 | . . . 23 33 33 Leg 13 | . 27 28 8 . . Storage 12 | . 14 14 11 11 11 Protection 17 | . 13 14 18 22 22 Energy Gun 15 | . 12 . 16 22 22 Energy Cannon 1 | . . . 3 . . Ballistic Gun 4 | . 9 14 2 . . Impact Weapon 2 | . 5 14 . . . Peak Build Rating 21 | 6 8 8 21 19 20 Average Rating 13 | 4 7 8 16 19 19 On Entrance 10 | . 6 8 8 19 19 Naked Turns . | . . . . . . Heaviest Build 48 | 13 20 20 48 42 42 Greatest Support 63 | 20 20 20 63 63 63 Greatest Overweight (x) 3 | 3 1 . 1 . . Average Overweight (x) . | . . . . . . Largest Inventory Capacity 15 | 8 10 10 15 15 15 Average Capacity 12 | 7 9 10 14 15 15 Most Carried 15 | 1 10 10 15 15 15 Average Carried 11 | . 6 10 13 15 14 Final Capacity 15 | 8 10 10 15 15 15 Final Carried 15 | 1 10 10 15 15 15 Class Distribution -------------------- 84% | Mutant 15% | Scavenger-Mutant Dominant Class ---------------- Mutant | -10/Materials Mutant | -10/Mines Mutant | -9/Materials Mutant | -9/Mines Mutant | -9/Exiles Resources | -11 -10 -10 -9 -9 -9 ----------- Run | Yrd Mat Min Mat Min Exi Matter Collected 825 | 195 211 . 419 . . Remotely . | . . . . . . Salvage Created 1941 | . 904 34 1003 . . Parts 118 | . 49 2 67 . . Haulers Intercepted 7 | . 2 . 5 . . Recyclers Shooed 5 | . 5 . . . . Parts Field Recycled . | . . . . . . Retrieved Matter . | . . . . . . Parts Self-Destructed . | . . . . . . Prevented . | . . . . . . Kills | -11 -10 -10 -9 -9 -9 ------- Run | Yrd Mat Min Mat Min Exi Combat Hostiles Destroyed 36 | . 18 3 15 . . Melee 7 | . 4 3 . . . Guns 25 | . 13 . 12 . . Cannons 3 | . . . 3 . . AOE 1 | . 1 . . . . Classes Destroyed 11 | . 8 . 3 . . Worker 2 | . 1 . 1 . . Builder 2 | . 1 . 1 . . Tunneler 1 | . . . 1 . . Hauler 7 | . 2 . 5 . . Recycler 2 | . 2 . . . . Operator 2 | . 1 . 1 . . Watcher 4 | . 2 . 2 . . Swarmer 12 | . 9 3 . . . Grunt 18 | . 9 . 9 . . Brawler 1 | . . . 1 . . Sentry 5 | . . . 5 . . Best Kill Streak 5 | . 4 2 5 . . Combat Bots Only 3 | . 3 2 3 . . Max Kills in Single Turn 1 | . 1 1 1 . . Gunslinging . | . . . . . . Exploded 1 | . 1 . . . . Melee 1 | . 1 1 . . . Uniques/NPCs Destroyed . | . . . . . . Combat | -11 -10 -10 -9 -9 -9 -------- Run | Yrd Mat Min Mat Min Exi Hostile Shots Fired 187 | . 84 38 65 . . Missed 50 | . 20 11 19 . . Damage Taken 1501 | . 667 204 630 . . Core 306 | . 162 60 84 . . Absorbed by Shields . | . . . . . . Redirected to Shielding 81 | . 22 1 58 . . Regen/Repaired (Parts) 189 | . . . 189 . . Core Remaining (%) 55 | 100 . 11 . . . Volleys Fired 120 | . 52 . 67 1 . Largest 2 | . 2 . 2 2 . Hottest 120 | . 60 . 120 112 . Shots Fired 237 | . 101 . 134 2 . Gun 223 | . 101 . 120 2 . Cannon 14 | . . . 14 . . Launcher . | . . . . . . Special . | . . . . . . Kinetic 73 | . 50 . 23 . . Thermal 115 | . 2 . 111 2 . Explosive . | . . . . . . Electromagnetic 49 | . 49 . . . . Robot Hit Streak 17 | . 10 . 17 . . Robot Miss Streak 3 | . 3 . 3 . . Penetration Max . | . . . . . . Secondary Targets 4 | . 3 . 1 . . Max Gunslinging Chain 1 | . 1 . 1 . . Shots Hit Robots 173 | . 81 8 84 . . Core Hits 74 | . 38 2 34 . . Critical Kills 2 | . 2 . . . . Critical Parts Destroyed 1 | . . 1 . . . Critical Strikes 12 | . 2 1 9 . . Burn 9 | . . . 9 . . Smash 3 | . 2 1 . . . Melee Attacks 55 | . 36 19 . . . Impact 55 | . 36 19 . . . Slashing . | . . . . . . Piercing . | . . . . . . Sneak Attacks 5 | . 5 . . . . Combat Hostiles . | . . . . . . Follow-up Attacks . | . . . . . . Damage Inflicted 3318 | . 1528 218 1556 16 . Guns 1999 | . 734 . 1265 . . Cannons 252 | . . . 252 . . Explosions 134 | . 134 . . . . Melee 862 | . 644 218 . . . Ramming 71 | . 16 . 39 16 . Kinetic 378 | . 216 . 162 . . Thermal 1512 | . 157 . 1355 . . Explosive . | . . . . . . Electromagnetic 495 | . 495 . . . . Impact 862 | . 644 218 . . . Slashing . | . . . . . . Piercing . | . . . . . . Highest Corruption 2 | . 1 2 . . . Average Corruption 1 | . 1 1 . . . Corruption Purged . | . . . . . . Corruption Blocked . | . . . . . . Effects 7 | . 6 1 . . . Message Errors 1 | . . 1 . . . Matter Fused 2 | . 2 . . . . Heat Flow Errors 1 | . 1 . . . . Energy Discharges 1 | . 1 . . . . Data Loss (minor) 1 | . 1 . . . . Data Loss (major) 1 | . 1 . . . . Overload Shots . | . . . . . . Overflow Damage 152 | . 96 56 . . . Projectiles . | . . . . . . Explosions 19 | . 19 . . . . Melee 133 | . 77 56 . . . Knockbacks 6 | . 5 1 . . . Impact 5 | . 4 1 . . . Kinetic . | . . . . . . Secondary 1 | . 1 . . . . Self-Inflicted Damage 58 | . 58 . . . . Shots 2 | . 2 . . . . Rammed 6 | . . . 5 1 . Targets Rammed 10 | . 3 . 6 1 . Kicked 3 | . 3 . . . . Crushed 1 | . . . 1 . . Highest Temperature 340 | . 271 . 340 54 . Average Temperature 80 | . 46 . 97 28 . Received Heat Transfer 465 | . 183 . 282 . . Effects 2 | . 1 . 1 . . Interference 2 | . 1 . 1 . . Siege Activations . | . . . . . . Robots Corrupted 1 | . 1 . . . . Combat Hostiles . | . . . . . . Parts Fried 2 | . 1 1 . . . Impact Corruptions 6 | . 4 2 . . . Robots Melted . | . . . . . . Combat Hostiles . | . . . . . . Parts Melted 8 | . . . 8 . . Heat Transferred 3691 | . 250 . 3441 . . Parts Sabotaged . | . . . . . . Parts Stolen . | . . . . . . Parts Stripped . | . . . . . . Power Chain Reactions 3 | . 3 . . . . Alert | -11 -10 -10 -9 -9 -9 ------- Run | Yrd Mat Min Mat Min Exi Peak Influence 329 | . 318 203 329 37 . Initial 118 | . . 118 78 37 . Average 147 | . 156 155 183 31 . Maximum Alert Level 1 | . 1 1 1 . . Low Security (%) 62 | 100 59 84 50 100 . Level 1 37 | . 40 16 49 . . Level 2 . | . . . . . . Level 3 . | . . . . . . Level 4 . | . . . . . . Level 5 . | . . . . . . High Security . | . . . . . . Max Security . | . . . . . . Squads Dispatched 7 | . 4 . 3 . . Investigation 5 | . 3 . 2 . . Extermination . | . . . . . . Reinforcement 2 | . 1 . 1 . . Assault . | . . . . . . Garrison . | . . . . . . Intercept . | . . . . . . Searches Triggered . | . . . . . . Construction Impeded . | . . . . . . Haulers Reinforced . | . . . . . . Active Scanning Responses . | . . . . . . Cargo Convoy Interrupts . | . . . . . . Stealth | -11 -10 -10 -9 -9 -9 --------- Run | Yrd Mat Min Mat Min Exi Distress Signals 5 | . 1 . 4 . . Communications Jammed . | . . . . . . Distress Signals . | . . . . . . Times Spotted 59 | . 29 3 27 . . Peak Tracking Total 4 | . 4 3 3 . . Tactical Retreats 2 | . 1 . 1 . . Traps | -11 -10 -10 -9 -9 -9 ------- Run | Yrd Mat Min Mat Min Exi Traps Triggered 2 | . 2 . . . . Indirectly . | . . . . . . Trap Hack Attempts . | . . . . . . Triggered . | . . . . . . Disarmed . | . . . . . . Reprogrammed . | . . . . . . Reused . | . . . . . . Traps Extracted . | . . . . . . Installed . | . . . . . . Triggered . | . . . . . . Machines | -11 -10 -10 -9 -9 -9 ---------- Run | Yrd Mat Min Mat Min Exi Machines Disabled 6 | . 3 1 2 . . Max in Single Turn 1 | . 1 1 1 . . Machines Repaired . | . . . . . . Machines Dismantled . | . . . . . . Machines Sabotaged . | . . . . . . Overloaded Fab Kills . | . . . . . . Hacking | -11 -10 -10 -9 -9 -9 --------- Run | Yrd Mat Min Mat Min Exi Machines Accessed 17 | . 7 . 9 . 1 Terminals 15 | . 7 . 8 . . Fabricators . | . . . . . . Repair Stations 1 | . . . 1 . . Recycling Units . | . . . . . . Scanalyzers . | . . . . . . Garrison Access . | . . . . . . Total Hacks 60 | . 23 . 36 . 1 Successful 26 | . 10 . 15 . 1 Failed 34 | . 13 . 21 . . Catastrophic 2 | . . . 2 . . Database Lockouts . | . . . . . . Manual 39 | . 18 . 20 . 1 Terminals 55 | . 23 . 32 . . Fabricators . | . . . . . . Repair Stations 4 | . . . 4 . . Recycling Units . | . . . . . . Scanalyzers . | . . . . . . Garrison Access . | . . . . . . Terminal Hacks 15 | . 7 . 7 . 1 Robot Analysis 8 | . 5 . 3 . . Prototype ID Bank 2 | . . . 2 . . Terminal Index 1 | . 1 . . . . Unreport Threat 2 | . . . 2 . . Locate Traps 1 | . 1 . . . . Derelict Proto ID Bank 1 | . . . . . 1 Fabricator Hacks . | . . . . . . Repair Station Hacks 4 | . . . 4 . . Scan Component 2 | . . . 2 . . Repair 2 | . . . 2 . . Recycling Unit Hacks . | . . . . . . Scanalyzer . | . . . . . . Garrison Access Hacks . | . . . . . . Unauthorized Hacks 7 | . 3 . 4 . . Terminals 7 | . 3 . 4 . . Botnet 5 | . 2 . 3 . . Operators 2 | . 1 . 1 . . Fabricators . | . . . . . . Repair Stations . | . . . . . . Recycling Units . | . . . . . . Scanalyzers . | . . . . . . Garrison Access . | . . . . . . Data Cores Recovered . | . . . . . . Used . | . . . . . . Hacking Detections 16 | . 7 . 9 . . Full Trace Events 5 | . 3 . 2 . . Feedback Events . | . . . . . . Feedback Blocked . | . . . . . . Robot Schematics Acquired . | . . . . . . Robots Built . | . . . . . . Authchips . | . . . . . . Time . | . . . . . . Total Robot Build Rating . | . . . . . . Part Schematics Acquired . | . . . . . . Parts Built . | . . . . . . Authchips . | . . . . . . Time . | . . . . . . Total Part Build Rating . | . . . . . . Parts Repaired 2 | . . . 2 . . Time 70 | . . . 70 . . Parts Recycled . | . . . . . . Recycled Matter . | . . . . . . Retrieved Matter . | . . . . . . Retrieved Components . | . . . . . . Parts Scanalyzed . | . . . . . . Part Schematics Acquired . | . . . . . . Parts Damaged . | . . . . . . Bothacking | -11 -10 -10 -9 -9 -9 ------------ Run | Yrd Mat Min Mat Min Exi Used RIF Installer . | . . . . . . Robots Hacked . | . . . . . . Non-combat . | . . . . . . Combat . | . . . . . . Robot Hacks Applied . | . . . . . . Relay Couplers Released . | . . . . . . Fabnet Peak Effective % . | . . . . . . Robots Rewired . | . . . . . . Allies Hacked . | . . . . . . Hacks Repelled . | . . . . . . Allies | -11 -10 -10 -9 -9 -9 -------- Run | Yrd Mat Min Mat Min Exi Total Allies . | . . . . . . Largest Group . | . . . . . . Highest-Rated Group . | . . . . . . Highest-Rated Ally . | . . . . . . Total Orders . | . . . . . . Ally Attacks . | . . . . . . Total Damage . | . . . . . . Kills . | . . . . . . Allies Corrupted . | . . . . . . Allies Melted . | . . . . . . Intel | -11 -10 -10 -9 -9 -9 ------- Run | Yrd Mat Min Mat Min Exi Robot Analysis Total 8 | . 5 . 3 . . Derelict Logs Recovered 2 | . . . . 2 . Drone Launches . | . . . . . . Drone Recoveries . | . . . . . . Exploration | -11 -10 -10 -9 -9 -9 ------------- Run | Yrd Mat Min Mat Min Exi Turns Passed 3503 | 65 1129 150 1490 472 197 Spaces Moved 1817 | 45 579 81 698 293 121 Core 8 | 8 . . . . . Treads 923 | . . . 509 293 121 Legs 886 | 37 579 81 189 . . Wheels . | . . . . . . Hover . | . . . . . . Flight . | . . . . . . Fastest Speed 50 | 50 120 120 120 160 160 Average Speed 142 | 120 122 120 152 160 160 Slowest Speed 240 | 200 190 120 240 160 160 Overloaded Moves . | . . . . . . Propulsion Burnouts . | . . . . . . Robots Hopped . | . . . . . . Cave-ins Triggered . | . . . . . . Exploration Rate (%) 47 | 4 94 23 74 52 40 Regions Visited 5 Branch Regions 3 Pre-discovered Areas 2 | . . 1 . 1 . Known Exits Taken . | . . . . . . Unknown Exits Taken 5 | 1 1 1 1 1 . Scrap Searched 2 | . . 1 . 1 . Spaces Dug 3 | . 3 . . . . Terrain Destroyed 18 | . 17 . 1 . . Melee 3 | . 3 . . . . Projectile 1 | . . . 1 . . AOE 14 | . 14 . . . . Terrain Rammed . | . . . . . . Walls Destroyed . | . . . . . . Machines Disabled . | . . . . . . Actions | -11 -10 -10 -9 -9 -9 --------- Run | Yrd Mat Min Mat Min Exi Total 2392 | 52 841 100 980 294 125 Wait 297 | . 152 . 145 . . Move 1812 | 44 578 80 697 292 121 Hop . | . . . . . . Pick Up 19 | 1 9 . 7 . 2 Fast Attach 25 | 6 2 . 17 . . Attach 3 | . 1 . 2 . . Detach . | . . . . . . Swap 24 | 1 6 1 16 . . Drop 27 | . 2 . 23 . 2 Fire 120 | . 52 . 67 1 . Melee 55 | . 36 19 . . . Ram . | . . . . . . Kick 3 | . 3 . . . . Crush 7 | . . . 6 1 . Escape Stasis . | . . . . . . Rewire . | . . . . . . Trap . | . . . . . . Miscellaneous . | . . . . . . Route ------- -11/Scrapyard -10/Materials (discovered 5 exits: *Mat x3 / [*Min x2]) -10/Mines -9/Materials (discovered 4 exits: [*Mat x2] / [*Min] / [*Sto]) -9/Mines -9/Exiles History --------- Turn | Location | Event 22 | -11/Scrapyard | Discovered new exit (range 15) 66 | -11/Scrapyard | Entered Materials 304 | -10/Materials | Build established: Mutant 342 | -10/Materials | Discovered new exit (range 15) 499 | -10/Materials | Discovered new exit (range 7) 721 | -10/Materials | Discovered new exit (range 7) 772 | -10/Materials | Core integrity fell below 50% 981 | -10/Materials | Discovered new exit (range 6) 1047 | -10/Materials | Discovered new exit (range 3) 1051 | -10/Materials | Build established: Scavenger-Mutant 1195 | -10/Materials | Entered Mines 1196 | -10/Mines | Learned location of Storage (-9) 1210 | -10/Mines | Discovered new exit (range 9) 1286 | -10/Mines | Core integrity fell below 20% 1345 | -10/Mines | Entered Materials 1345 | -9/Materials | Evolved 2 slots: Propulsion x1, Utility x1 1461 | -9/Materials | Build established: Mutant 1521 | -9/Materials | Discovered new exit (range 6) 1894 | -9/Materials | Discovered new exit (range 15) 2134 | -9/Materials | Discovered new exit (range 16) 2283 | -9/Materials | Repaired Imp. Treads 2322 | -9/Materials | Repaired Imp. Weapon Shielding 2534 | -9/Materials | Discovered new exit (range 16) 2835 | -9/Materials | Entered Mines 2894 | -9/Mines | Met a Derelict bent on vengeance 3080 | -9/Mines | Learned location of Zion (-6) 3102 | -9/Mines | Learned 2 Materials zone layouts 3120 | -9/Mines | Deemed a non-threat by the Exiles lab entrance 3122 | -9/Mines | Discovered new exit (range 5) 3249 | -9/Mines | Assembled infested the area 3307 | -9/Mines | Entered Exiles 3354 | -9/Exiles | Met 8R-AWN 3378 | -9/Exiles | Met EX-HEX 3424 | -9/Exiles | Met EX-BIN 3443 | -9/Exiles | Aligned with FarCom system 3445 | -9/Exiles | Given EX-Vault access code 3498 | -9/Exiles | Opened EX-Vault 3504 | -9/Exiles | Self-destructed Last Messages --------------- Modified TNC 0b10 Alert Chip Cloak of Protection Skeleton Box Trap Reconfigurator Supersonic Drone Bay Army-in-a-Box PSU Rigger Chronowheel AWS/Thermal Latent Energy Streamer Gui. Plasma Cannon Firepult YOLO Cannon AWS/Gauss XL Autogun Array AWS/Autocannon Field Lobotomy Kit Longsword +1 Deploy-a-Sentry Map ----- +----------------------------------------------------+ | | | | | | | | | | | | | | | | | | | | | | | | | | | | | | | | | | | | | | | | | | | | | ?????????????????????####?####???????????????????? | | ?????????????????????# # #???????????????????? | | ?????????????????????# X! #???????????????????? | | ?????????????????????#[ @ #???????????????????? | | ?????????????????????# [ #???????????????????? | | ?????????????????????## ##???????????????????? | | ?????????????????????#X #????????????????????? | | ?????????????????????## #????????????????????? | | ??????????????????????# #????????????????????? | | ??????????????????????# #???###??????????????? | | ??????????????????????# #??"""""?????????????? | | ??????????????????????# ## """?????????????? | | ??????????????????????# X""?????????????? | | ??????????????????????# ## """?????????????? | | ????????????????####??# #??"""""?????????????? | | ???????????????""""""?# #???###??????????????? | | ???????????????"""" ## #????????????????????? | | ??????????????#""X" #????????????????????? | | ??????????????#" #????????????????????? | | ??????????????#" ## #????????????????????? | | ??????????????#""""""?# #?#########??????????? | | ??????????????##"###??# #?#"""""""#??????????? | | ??????????????????????# #?#"""""""#??????????? | | ??????????????????????# #?#"""""""#??????????? | | ?????????????????????## ###"" """"#??????????? | | ?????????????????????#" """"#??????????? | | ?????????????????????#" """#??????????? | | ?????????????????????#" """#??????????? | +----------------------------------------------------+ Best States ------------- Heat Dissipation 50 Energy Generation 14 Energy Capacity 280 Matter Stores 300 Matter Capacity 300 Sight Range 16 Terrain Scan Density 10 Armor Coverage 225 Power Shielding 33 Weapon Shielding 66 Evasion (%) 55 Recoil Reduction 3 Item Schematics ----------------- None Robot Schematics ------------------ None Fabricated ------------ Nothing Alien Tech Used ----------------- None Achievements -------------- None Challenges ------------ None Game ------ Seed BoltSapperSteel Manual? 0 Play Time 00:27:24 Cumulative 97.5 hours Start 2024.09.25 @ 23:48:52 End 2024.09.26 @ 00:15:35 Sessions 1 Manual Loads 0 Difficulty Rogue Special Mode None Game No. 61 Rogue 25 Adventurer 36 Explorer 0 Win Type - Total 2 Types 2/0/0/0/0/0/0/0/0 Lore% 50 Gallery% 55 Achievement% 50 Wizard Run 0 Options --------- Layout 1 ASCII 0 Keyboard 0 Movement Numpad Keybinds 0 Fullscreen 1 Font 48/Smallcaps Map View 50x35 Zoom Use 0% Tactical HUD 1 Map Filters NONE Filters NONE Steam 1 RUN: e2e945f2-0128-4cc4-b682-766f1c87cdcd